[Event "4NCL 2022-2023"]
[Site "Daventry"]
[Date "2023.01.15"]
[Round "4.14"]
[White "Terbe, Julianna"]
[Black "Zeidler, Sven P."]
[Result "1-0"]
[ECO "B06"]
[WhiteElo "2269"]
[BlackElo "2138"]
[Annotator "TA"]
[PlyCount "79"]
[EventDate "2022.10.20"]
[EventType "team-tourn"]
[EventCountry "ENG"]
[SourceTitle "playchess.com"]
[Source "ChessBase"]
[SourceQuality "1"]
[TimeControl "40/6000+30:2400+30"]

{[%evp 9,78,30,43,41,74,57,76,62,69,81,84,54,68,35,39,36,42,14,13,13,19,0,42,43,65,67,94,80,102,64,58,42,60,62,84,55,45,47,81,2,15,24,61,37,123,111,149,164,156,54,56,70,71,0,79,16,29,29,131,134,298,297,294,173,374,352,29997,29998,29998,29999,29999]} 1. e4 {[%emt 0:00:04]} Nc6 {[%emt 0:00:07]} 2. Nf3 {[%emt 0:00:21]} d6 {[%emt 0:00:18]} 3. d4 {[%emt 0:00:22][%cal Bd2d4,Bd4d5][%mdl 32]} Nf6 {[%emt 0:00:13]} 4. Nc3 {[%emt 0:00:06]} g6 {[%emt 0:00:09]} 5. Be3 {[%emt 0:00:08]} Bg7 {[%emt 0:00:41]} 6. Qd2 {[%emt 0:00:09] B06: Modern Defence.} Bg4 {[%emt 0:07:12]} 7. d5 {[%emt 0:00:20]} Nb8 {[%emt 0:08:01][%cal Bc6b8,Bb8a6,Ba6c7][%mdl 32]} 8. Nd4 {[%emt 0:00:09] White is better.} c6 {[%emt 0:00:56]} 9. f3 {[%emt 0:00:14] [#]} Bd7 $146 {[%emt 0:00:14]} ({Predecessor:} 9... Bc8 10. dxc6 bxc6 11. O-O-O Qa5 12. Nb3 Qc7 13. Bh6 Bxh6 14. Qxh6 Be6 15. h4 Bxb3 16. axb3 {0-1 Von Herman,U (2371)-Kauschmann,H (2140) Berlin op 03 2005 (5)}) 10. Be2 {[%emt 0:01:10]} cxd5 {[%emt 0:04:05]} 11. exd5 {[%emt 0:02:37]} Na6 {[%emt 0:02:45]} 12. O-O {[%emt 0:06:33]} O-O {[%emt 0:04:45]} 13. Kh1 {[%emt 0:02:52]} Nc7 {[%emt 0:25:49]} 14. Bc4 {[%emt 0:03:29]} a6 {[%emt 0:03:46]} 15. a4 {[%emt 0:00:21]} e5 {[%emt 0:01:54]} 16. dxe6 {[%emt 0:04:16]} fxe6 {[%emt 0:00:09]} 17. Bb3 {[%emt 0:04:53] White has more active pieces.} d5 {[%emt 0:04:12]} 18. Bf4 {[%emt 0:08:23]} Nh5 {[%emt 0:07:28]} 19. Bg5 {[%emt 0:04:06]} Bf6 {[%emt 0:03:09]} 20. Bh6 {[%emt 0:01:23]} Bg7 {[%emt 0:03:51]} 21. Bxg7 {[%emt 0:01:21]} Kxg7 {[%emt 0:00:11]} 22. Qe3 {[%emt 0:05:16] Prevents e5.} Qf6 {[%emt 0:03:03]} 23. Rae1 {[%emt 0:00:13][%cal Of3f4]} g5 {[%emt 0:09:20]} 24. Qe5 {[%emt 0:04:20]} (24. Nde2 $16) 24... Qxe5 $11 {[%emt 0:00:25]} 25. Rxe5 {[%emt 0:00:05]} h6 {[%emt 0:00:10]} (25... Kf6 {looks sharper.} 26. Rfe1 Nf4 27. a5 Ng6) 26. g3 {[%emt 0:01:42]} Rf6 {[%emt 0:01:13]} (26... Nf6 $14) 27. Rfe1 {[%emt 0:07:09]} Kg6 {[%emt 0:01:14] [#]} 28. Nd1 $1 {[%emt 0:01:49]} Ng7 {[%emt 0:01:35]} 29. Nf2 {[%emt 0:01:02]} (29. c3 $16) 29... Nf5 $14 {[%emt 0:03:25]} 30. Nxf5 {[%emt 0:00:10]} Rxf5 {[%emt 0:00:16]} 31. Kg2 {[%emt 0:03:20]} ({Better is} 31. R5e2 $16) 31... Raf8 {[%emt 0:00:29]} (31... Rxe5 $11 {remains equal.} 32. Rxe5 Rb8) 32. Rxf5 {[%emt 0:00:11]} ({White should try} 32. R5e3 $16) 32... Kxf5 {[%emt 0:01:43]} 33. c3 {[%emt 0:03:27] Hoping for Ng4.} h5 {[%emt 0:00:59] [#] Prevents Ng4.} (33... Bc6 $11 {keeps the balance.}) 34. g4+ $1 $16 {[%emt 0:01:54]} hxg4 $2 {[%emt 0:01:11] A mistake that costs the game.} (34... Kg6 $16) 35. Nxg4 $18 {[%emt 0:00:37]} Kf4 {[%emt 0:02:47]} 36. Bc2 {[%emt 0:00:52]} (36. Ne5 $142 Be8 37. Bc2) 36... Bc6 $2 {[%emt 0:02:16]} (36... e5 {might work better.}) 37. Ne5 {[%emt 0:03:15][%cal Re5g6]} Rf6 {[%emt 0:00:20]} (37... Be8 $18 38. Bh7 g4) 38. Nd3+ {[%emt 0:01:02] White mates.} Kf5 {[%emt 0:00:08]} 39. Nf2+ {[%emt 0:00:11]} Kf4 {[%emt 0:00:05]} 40. Nh3# {[%emt 0:00:03] Weighted Error Value: White=0.21 (precise) /Black=0.47} 1-0

[Event "4NCL 2022-2023"]
[Site "Daventry"]
[Date "2023.01.15"]
[Round "4.15"]
[White "Khoury, Theo"]
[Black "Kolbus, Dietmar"]
[Result "1/2-1/2"]
[ECO "B22"]
[WhiteElo "1917"]
[BlackElo "2292"]
[Annotator "TA"]
[PlyCount "136"]
[EventDate "2022.10.20"]
[EventType "team-tourn"]
[EventCountry "ENG"]
[SourceTitle "playchess.com"]
[Source "ChessBase"]
[SourceQuality "1"]
[TimeControl "40/6000+30:2400+30"]

{[%evp 9,136,37,41,53,91,85,87,95,86,53,58,55,68,76,68,72,75,68,88,95,103,102,110,108,129,106,104,108,126,122,148,122,120,114,104,113,115,102,140,95,108,98,151,150,164,164,164,164,192,212,208,197,255,171,171,171,255,255,246,164,164,164,164,164,164,164,164,164,164,164,164,164,164,164,164,164,164,164,164,164,164,164,164,138,138,138,138,59,81,14,14,0,0,0,0,0,0,0,0,0,0,0,0,0,0,0,0,0,0,0,0,0,0,0,0,0,0,0,0,0,0,0,0,0,0,0,0,0,0]} 1. e4 {[%emt 0:00:07]} c5 {[%emt 0:01:25]} 2. c3 {[%emt 0:00:08]} e5 {[%emt 0:00:21]} 3. Nf3 {[%emt 0:00:34]} Nc6 {[%emt 0:00:06]} 4. Bc4 {[%emt 0:00:23]} Bd6 {[%emt 0:02:04]} 5. d4 {[%emt 0:00:42]} cxd4 {[%emt 0:05:44]} 6. cxd4 {[%emt 0:00:08] [#] B22: Sicilian: 2 c3.} Nxd4 $146 {[%emt 0:00:37]} ({Predecessor:} 6... Nf6 7. dxe5 Nxe5 8. Qxd6 Nxc4 9. Qd4 d5 10. e5 Ne4 11. O-O O-O 12. Nc3 Nxc3 13. Qxc3 {0-1 Bakalarz,M (2263)-Golubka,P (2495) Ustron op-A 2020 (3)}) 7. Nxd4 {[%emt 0:00:35]} exd4 {[%emt 0:00:03]} 8. Qxd4 {[%emt 0:00:42] White is better.} (8. Nc3 {is interesting.} dxc3 9. Qxd6 Qf6 10. Qa3) 8... Qf6 {[%emt 0:00:34]} 9. Qxf6 {[%emt 0:05:58]} Nxf6 {[%emt 0:00:03]} 10. Nc3 {[%emt 0:00:11]} a6 {[%emt 0:03:04]} 11. Bg5 {[%emt 0:06:30]} Be5 {[%emt 0:00:23]} 12. O-O-O {[%emt 0:04:13]} b5 {[%emt 0:04:02]} 13. Bb3 {[%emt 0:01:38][%cal Bc4b3,Bb3f7,Bf7d5][%mdl 32] White is more active.} Bb7 {[%emt 0:02:16]} 14. Bxf6 {[%emt 0:00:29]} Bxf6 {[%emt 0:00:23] [#]} 15. Bxf7+ $1 {[%emt 0:00:11][%mdl 576] Decoy} Ke7 {[%emt 0:01:19] ...b4 is the strong threat. Black is weak on the light squares} 16. Bd5 {[%emt 0:03:08]} Bc6 {[%emt 0:00:23]} 17. f4 {[%emt 0:06:34]} Bxc3 {[%emt 0:00:21]} 18. bxc3 {[%emt 0:00:08]} Rac8 {[%emt 0:00:30]} 19. Kb2 {[%emt 0:00:25]} Rc7 {[%emt 0:06:24]} 20. Bxc6 {[%emt 0:06:16]} Rxc6 $16 {[%emt 0:00:14][%mdl 4096] Endgame KRR-KRR} 21. Rd5 {[%emt 0:03:27]} d6 {[%emt 0:00:28]} 22. Rhd1 {[%emt 0:02:37]} Rhc8 {[%emt 0:00:13]} 23. R1d3 {[%emt 0:05:32]} R8c7 {[%emt 0:00:16]} 24. a3 {[%emt 0:00:23]} Rc4 {[%emt 0:06:23]} 25. R5d4 {[%emt 0:02:49]} R4c6 {[%emt 0:00:26]} (25... d5 $142) 26. g4 {[%emt 0:01:40]} h6 {[%emt 0:00:19]} 27. h4 {[%emt 0:02:22]} Rb6 {[%emt 0:05:55]} 28. g5 {[%emt 0:07:55]} hxg5 {[%emt 0:00:08]} 29. hxg5 {[%emt 0:00:14]} Rc5 {[%emt 0:05:28]} 30. Rd5 {[%emt 0:03:52] Hoping for Rxc5.} Rbc6 {[%emt 0:01:36]} (30... Rc8 {was necessary.} 31. f5 Rc7) 31. Rxc5 {[%emt 0:00:58]} Rxc5 $18 {[%emt 0:00:08] KR-KR} 32. Kb3 {[%emt 0:01:41]} Rc8 {[%emt 0:00:38]} (32... g6 {keeps fighting.} 33. Rd5 Rc4) 33. f5 {[%emt 0:01:56]} Rc4 {[%emt 0:03:52] [#]} 34. f6+ $1 {[%emt 0:01:50][%mdl 512]} gxf6 {[%emt 0:00:28]} 35. gxf6+ {[%emt 0:00:07]} Ke6 {[%emt 0:00:17] [#]} 36. f7 $1 {[%emt 0:00:54][%mdl 576] Deflection} Kxf7 {[%emt 0:04:43]} 37. Rxd6 {[%emt 0:00:08]} Rxe4 {[%emt 0:01:14]} 38. Rxa6 {[%emt 0:00:06]} Ke7 {[%emt 0:02:21]} 39. Rb6 {[%emt 0:00:31]} Kd7 {[%emt 0:01:06]} 40. Rxb5 {[%emt 0:00:11]} Kc6 {[%emt 0:00:05]} 41. Rb4 {[%emt 0:42:00]} Re5 {[%emt 0:40:33]} 42. a4 {[%emt 0:00:42]} Rh5 {[%emt 0:00:28]} 43. Rb8 {[%emt 0:02:00]} Rh1 {[%emt 0:01:29] ( -> ...Rb1+)} 44. Rb5 {[%emt 0:05:11]} Rb1+ {[%emt 0:01:38]} 45. Kc4 {[%emt 0:00:07]} Ra1 {[%emt 0:00:36]} 46. Rb4 {[%emt 0:00:06]} Ra3 {[%emt 0:01:23]} 47. Kd3 {[%emt 0:01:23]} Ra2 {[%emt 0:01:25] [#]} 48. Kd4 {[%emt 0:05:03]} (48. c4 $1 $16) 48... Ra1 $14 {[%emt 0:03:48]} 49. c4 {[%emt 0:06:23]} (49. Ke4 $16) 49... Ra3 $11 {[%emt 0:03:31] The position is equal.} 50. c5 {[%emt 0:00:07]} Ra1 {[%emt 0:01:45]} 51. Rb6+ {[%emt 0:01:25]} Kc7 {[%emt 0:00:09]} 52. Ra6 {[%emt 0:03:54]} Rd1+ {[%emt 0:01:40]} 53. Kc4 {[%emt 0:00:46]} Rc1+ {[%emt 0:00:07]} 54. Kb5 {[%emt 0:02:29] aiming for Ra7+.} Rb1+ {[%emt 0:00:06]} 55. Ka5 {[%emt 0:00:06]} Rc1 {[%emt 0:00:16]} 56. Kb4 {[%emt 0:03:25]} Rb1+ {[%emt 0:00:06]} 57. Ka3 {[%emt 0:00:07]} Rc1 {[%emt 0:00:10]} 58. Ra5 {[%emt 0:01:46]} Kc6 {[%emt 0:00:13]} 59. Kb4 {[%emt 0:00:04]} Rb1+ {[%emt 0:00:16]} 60. Kc4 {[%emt 0:00:32]} Rc1+ {[%emt 0:00:07]} 61. Kd4 {[%emt 0:00:34]} Rd1+ {[%emt 0:00:06]} 62. Ke3 {[%emt 0:00:43]} Rd5 {[%emt 0:01:33]} 63. Ra6+ {[%emt 0:00:46]} Kxc5 {[%emt 0:00:15]} 64. Ra5+ {[%emt 0:00:12]} Kc6 {[%emt 0:00:26]} 65. Rxd5 {[%emt 0:00:09]} Kxd5 {[%emt 0:00:04]} 66. a5 {[%emt 0:00:04]} Kc5 {[%emt 0:00:08]} 67. a6 {[%emt 0:00:02] White wants to mate with a7.} Kb6 {[%emt 0:00:08]} 68. a7 {[%emt 0:00:03]} Kxa7 {[%emt 0:00:07] Black defended with fortune.   Weighted Error Value: White=0.13 (very precise) /Black=0.09 (flawless)} 1/2-1/2

[Event "4NCL 2022-2023"]
[Site "Daventry"]
[Date "2023.01.15"]
[Round "4.16"]
[White "Akeya-Price, Robert"]
[Black "O'Gorman, Alice"]
[Result "0-1"]
[ECO "A06"]
[WhiteElo "1927"]
[BlackElo "2016"]
[Annotator "TA"]
[PlyCount "56"]
[EventDate "2022.10.20"]
[EventType "team-tourn"]
[EventCountry "ENG"]
[SourceTitle "playchess.com"]
[Source "ChessBase"]
[SourceQuality "1"]
[TimeControl "40/6000+30:2400+30"]

{[%evp 9,56,-2,12,12,10,6,16,23,16,15,21,14,10,0,10,-1,7,0,35,23,39,-7,0,-64,-41,-73,-81,-79,-35,-201,-192,-224,-244,-228,-216,-247,-240,-272,-286,-617,-515,-1172,-931,-926,-906,-1329,-920,-902,-891]} 1. Nf3 {[%emt 0:00:03]} d5 {[%emt 0:00:05]} 2. e3 {[%emt 0:00:08]} Nf6 {[%emt 0:00:06]} 3. b3 {[%emt 0:00:23]} c5 {[%emt 0:00:22]} 4. Bb2 {[%emt 0:00:12]} Nc6 {[%emt 0:00:14]} 5. Be2 {[%emt 0:01:01]} e6 {[%emt 0:00:11]} 6. O-O {[%emt 0:01:39] A06: Réti Opening: 1 Nf3 d5.} Be7 {[%emt 0:00:07]} 7. d4 {[%emt 0:01:00]} O-O {[%emt 0:01:17]} 8. dxc5 {[%emt 0:01:01] The position is equal.} Bxc5 {[%emt 0:00:45]} 9. c4 {[%emt 0:01:47]} dxc4 {[%emt 0:06:43]} 10. Qc2 {[%emt 0:02:40]} Qe7 {[%emt 0:02:46]} 11. Qxc4 {[%emt 0:00:41]} e5 {[%emt 0:03:13]} 12. Rc1 {[%emt 0:02:08] [#]} Bd6 $146 {[%emt 0:06:34]} ({Predecessor:} 12... Bb6 13. Ba3 Qe8 14. Bxf8 Qxf8 15. Nc3 Bf5 16. Bd3 Bxd3 17. Qxd3 Rd8 18. Qf5 Qe7 {1-0 Haydon,D (2262)-O'Gorman,A (2001) BCF-chT 2223 (4NCL) 2022 (2.6)}) 13. Nbd2 {[%emt 0:02:25]} Bf5 {[%emt 0:04:23]} 14. Qh4 {[%emt 0:05:42]} Rfd8 {[%emt 0:19:30]} 15. Nc4 {[%emt 0:09:29]} (15. Bb5 $14) 15... Bc7 $11 {[%emt 0:01:30]} 16. Ba3 {[%emt 0:18:39]} (16. Ncd2 $11) 16... Qe8 {[%emt 0:01:01]} (16... Qe6 $5) 17. Rd1 {[%emt 0:03:08]} Rxd1+ {[%emt 0:07:11]} 18. Rxd1 {[%emt 0:00:12]} Rd8 {[%emt 0:01:02]} 19. Bd6 $2 {[%emt 0:03:52] [#] Loses the game.} ({Better is} 19. Nd6 $15 Qe7 20. Nb5 Rxd1+ 21. Bxd1) 19... b5 $1 $19 {[%emt 0:10:48][%cal Bb7b5,Bb5c4,Bc4d3][%mdl 32]} 20. Bxc7 {[%emt 0:06:53]} Rxd1+ {[%emt 0:00:10]} 21. Bxd1 {[%emt 0:00:03][%cal Rc4e5]} bxc4 {[%emt 0:00:27]} 22. Be2 {[%emt 0:33:41]} Qe7 {[%emt 0:08:48] ...cxb3 is the strong threat.} 23. Qg5 {[%emt 0:03:57]} Bd3 {[%emt 0:01:45]} (23... Bg4 $2 24. Bxe5 Nxe5 25. Qxe5 Qxe5 26. Nxe5 cxb3 27. axb3 Bxe2 28. Nc6 $19) 24. Bxd3 $2 {[%emt 0:00:55]} ({Don't play} 24. Bxe5 Bxe2 25. Bxf6 Qxf6 $19) (24. Nxe5 Bxe2 25. Nxc6) 24... cxd3 {[%emt 0:00:04] Black is clearly winning.} 25. Bxe5 {[%emt 0:05:59]} (25. Ba5 $142 Nxa5 26. e4) 25... Nxe5 {[%emt 0:00:24]} ({Don't go for} 25... d2 $2 26. Nxd2 Nxe5 27. Ne4 $19) 26. Nd2 {[%emt 0:01:17]} Qc7 {[%emt 0:01:53] ( -> ...Qc1+)} 27. Nf1 {[%emt 0:01:06] [#]} d2 $1 {[%emt 0:03:18]} 28. Nxd2 {[%emt 0:00:34] [#]} Ne4 $1 {[%emt 0:00:32][%mdl 576] Back Rank.   Weighted Error Value: White=0.81/Black=0.43} 0-1

[Event "4NCL 2022-2023"]
[Site "Daventry"]
[Date "2023.01.15"]
[Round "4.17"]
[White "Royal, Shreyas"]
[Black "Grieve, Harry"]
[Result "0-1"]
[ECO "D35"]
[WhiteElo "2456"]
[BlackElo "2438"]
[Annotator "TA"]
[PlyCount "86"]
[EventDate "2022.10.20"]
[EventType "team-tourn"]
[EventCountry "ENG"]
[SourceTitle "playchess.com"]
[Source "ChessBase"]
[SourceQuality "1"]
[TimeControl "40/6000+30:2400+30"]

{[%evp 15,86,8,7,7,23,19,22,16,34,8,39,-24,-26,-43,0,0,33,35,44,41,46,35,84,63,72,80,70,66,98,93,106,86,83,82,63,0,169,83,83,86,91,63,75,0,0,-599,-550,-520,-384,-384,-378,-795,-377,-383,-369,-360,-351,-304,0,0,0,-285,-176,-1025,0,0,0,-1004,-1002,-953,-834,-29997,-29998]} 1. d4 {[%emt 0:00:39]} d5 {[%emt 0:00:05]} 2. c4 {[%emt 0:00:04]} e6 {[%emt 0:00:03]} 3. Nf3 {[%emt 0:00:04]} Nf6 {[%emt 0:00:04]} 4. cxd5 {[%emt 0:00:03]} exd5 {[%emt 0:00:20]} 5. Nc3 {[%emt 0:00:06]} c6 {[%emt 0:00:53]} 6. Bf4 {[%emt 0:00:07]} Bd6 {[%emt 0:01:07]} 7. Bxd6 {[%emt 0:00:24]} Qxd6 {[%emt 0:00:01]} 8. e3 {[%emt 0:00:09]} Bf5 {[%emt 0:00:27]} 9. Nh4 {[%emt 0:01:18] D35: Queen's Gambit Declined: Exchange Variation.} Be6 {[%emt 0:05:38]} 10. Bd3 {[%emt 0:00:57] [#]} O-O $146 {[%emt 0:00:21]} ({Predecessor:} 10... Nbd7 11. h3 Nb6 12. O-O O-O 13. Nf3 Qe7 14. Qc2 g6 15. Rae1 Nc8 16. Ng5 Nd6 17. Nxe6 fxe6 {½-½ Carlsen,M (2861)-Navara,D (2681) Julius Baer GenCup Prelim rapid 2022 (5)}) 11. h3 {[%emt 0:01:21] The position is equal.} Re8 {[%emt 0:02:24]} 12. Qc2 {[%emt 0:01:50]} Nbd7 {[%emt 0:02:53]} 13. O-O-O {[%emt 0:06:49]} ({Better is} 13. Nf3 $14) 13... c5 $11 {[%emt 0:07:10] Threatens to win with ...cxd4.} 14. Nf5 {[%emt 0:12:41]} Bxf5 {[%emt 0:03:20]} 15. Bxf5 {[%emt 0:00:07]} c4 {[%emt 0:00:01]} 16. g4 $1 {[%emt 0:03:34][%cal Bg2g4,Bg4g5][%mdl 32]} Nf8 {[%emt 0:09:37]} 17. g5 {[%emt 0:10:03]} N6d7 {[%emt 0:00:03]} 18. Bg4 {[%emt 0:00:07]} Rab8 {[%emt 0:13:36]} (18... Rad8 $14) 19. Bf3 {[%emt 0:01:31]} b5 {[%emt 0:00:20]} 20. Nxd5 {[%emt 0:02:25]} b4 {[%emt 0:05:18]} 21. b3 {[%emt 0:08:41]} (21. Qxc4 $2 Rec8 $19) 21... c3 {[%emt 0:05:10]} 22. e4 {[%emt 0:03:51][%cal Be3e4,Be4e5][%mdl 32]} Ne6 {[%emt 0:05:51]} 23. Rhg1 {[%emt 0:02:12]} (23. e5 {seems wilder.} Qa6 24. h4 Qa5 25. Ne3) 23... Ndf8 {[%emt 0:09:01]} 24. e5 {[%emt 0:07:09]} Qd8 {[%emt 0:00:01]} 25. h4 {[%emt 0:03:22]} (25. Rg4 $14) 25... a5 $2 {[%emt 0:01:34]} (25... Rb5 $1 $11 {and Black is okay.} 26. Nf6+ (26. Qe4 $2 Qa5 $19) 26... gxf6) 26. Be4 {[%emt 0:05:07]} (26. Rg4 $1 $18 {has better winning chances.}) 26... Rb5 $16 {[%emt 0:08:24] [#]} 27. Nf6+ {[%emt 0:01:53]} gxf6 {[%emt 0:00:02]} 28. gxf6+ {[%emt 0:00:07]} Kh8 $1 {[%emt 0:00:34] [#]} 29. Bc6 {[%emt 0:01:15]} (29. Qe2 $1 $16 {[%cal Re2b5]} Rd5 30. Qg4) 29... Rd5 $11 {[%emt 0:05:06]} 30. Rg4 {[%emt 0:12:39][%mdl 8192]} (30. f4 $1 $11 Nxf4 31. Qe4) 30... Nxd4 $19 {[%emt 0:09:08]} (30... Rxd4 $2 31. Rgxd4 (31. Bxe8 Rxd1+ 32. Qxd1 Qxe8 $17) 31... Nxd4 32. Bxe8 $18) 31. Bxd5 {[%emt 0:00:27]} Nxc2 {[%emt 0:03:34] Excellent horsemanship.} 32. Bxf7 {[%emt 0:00:06][%csl Gf7][%cal Rg4g8]} Nd7 $1 {[%emt 0:01:56] ...Na3 is the strong threat.} 33. Kxc2 {[%emt 0:00:08] [#]} (33. Rg7 Nxe5 34. Rxd8 (34. Kxc2 Qxf6 35. Rg2 Qf5+ 36. Kc1 Nd3+ 37. Kb1 Nf4+ 38. Ka1 c2) 34... Rxd8 35. Kxc2) 33... Nxe5 {[%emt 0:02:24]} 34. Rxd8 {[%emt 0:00:05]} Rxd8 {[%emt 0:00:01][%mdl 4096] Endgame KRB-KRN} 35. Rg7 {[%emt 0:00:06]} Rd2+ {[%emt 0:06:57]} 36. Kb1 {[%emt 0:00:05][%csl Gf7][%cal Rg7g8]} Rd1+ {[%emt 0:00:01]} (36... Rxf2 $2 37. Rg8#) 37. Kc2 {[%emt 0:00:07][%csl Gf7][%cal Rg7g8]} Rd2+ {[%emt 0:00:01]} 38. Kb1 {[%emt 0:00:05][%csl Gf7][%cal Rg7g8]} h5 {[%emt 0:02:45] ...Rb2+ would be deadly.} (38... Rxf2 $2 39. Rg8#) 39. f4 $2 {[%emt 0:02:10]} (39. Bxh5 $2 {perishes.} Nd3 40. Ka1 (40. Rc7 $2 Rb2+ 41. Ka1 c2 $19) 40... c2 $19) (39. Bg6 Rb2+ 40. Kc1 Rxf2 41. Rh7+ Kg8 42. f7+ Nxf7 43. Rxh5) 39... Rd1+ {[%emt 0:00:31]} 40. Kc2 {[%emt 0:00:04][%cal Of4e5]} Rd2+ {[%emt 0:00:03]} 41. Kb1 {[%emt 0:40:04]} Rb2+ {[%emt 0:03:33]} 42. Ka1 {[%emt 0:00:00] [#]} Rf2 $1 {[%emt 0:00:21][%cal Rf2f1][%mdl 64] Double Attack} 43. Kb1 {[%emt 0:00:00]} (43. Bc4 Nxc4) 43... c2+ {[%emt 0:00:16] A fantastic game!   Weighted Error Value: White=0.75/Black=0.64} 0-1

[Event "4NCL 2022-2023"]
[Site "Daventry"]
[Date "2023.01.15"]
[Round "4.18"]
[White "Makkar, Rajat"]
[Black "Fernandez, Daniel Howard"]
[Result "0-1"]
[ECO "E11"]
[WhiteElo "2425"]
[BlackElo "2481"]
[Annotator "TA"]
[PlyCount "58"]
[EventDate "2022.10.20"]
[EventType "team-tourn"]
[EventCountry "ENG"]
[SourceTitle "playchess.com"]
[Source "ChessBase"]
[SourceQuality "1"]
[TimeControl "40/6000+30:2400+30"]

{[%evp 9,57,6,16,10,16,0,36,35,44,18,21,13,25,13,18,10,17,17,40,39,46,54,49,22,7,22,40,0,112,54,120,24,50,-29,-20,-37,-38,-35,-40,-70,-33,-112,-39,-29996,-29997,-29997,-29998,-29998,-29999,-29999]} 1. d4 {[%emt 0:00:05]} Nf6 {[%emt 0:08:32]} 2. c4 {[%emt 0:00:37]} e6 {[%emt 0:00:10]} 3. Nf3 {[%emt 0:00:15]} Bb4+ {[%emt 0:03:37]} 4. Bd2 {[%emt 0:00:32][%cal Bc1d2,Bd2e1,Be1c3][%mdl 32]} a5 {[%emt 0:02:54]} 5. e3 {[%emt 0:03:49]} b6 {[%emt 0:00:36]} 6. Bd3 {[%emt 0:00:40] E11: Bogo-Indian.} Bb7 {[%emt 0:05:50]} 7. O-O {[%emt 0:01:13]} Ne4 {[%emt 0:00:38]} 8. a3 {[%emt 0:06:46] White is slightly better.} Be7 {[%emt 0:07:10] [#]} 9. Be1 $146 {[%emt 0:07:11]} ({Predecessor:} 9. Bc1 O-O 10. Nbd2 f5 11. Qc2 d5 12. cxd5 exd5 13. Ne5 c5 14. b3 Nd7 15. Ndf3 {0-1 Bartczak,H (1645)-Wilczynski,A (1654) Warsaw YMCA Spring-D 104th 2012 (6)}) 9... O-O {[%emt 0:03:05]} 10. Nc3 {[%emt 0:00:48]} f5 {[%emt 0:01:10]} 11. Qc2 {[%emt 0:01:34][%cal Rc3e4]} Nxc3 {[%emt 0:00:33]} 12. Bxc3 {[%emt 0:00:09]} Bxf3 {[%emt 0:05:34]} 13. gxf3 {[%emt 0:00:24]} c5 {[%emt 0:01:12]} 14. d5 {[%emt 0:05:13]} Bf6 {[%emt 0:00:02]} 15. f4 {[%emt 0:05:02]} Na6 {[%emt 0:06:59]} 16. Rad1 {[%emt 0:03:00] aiming for dxe6.} Bxc3 {[%emt 0:02:41]} 17. Qxc3 {[%emt 0:00:15]} Qh4 {[%emt 0:09:59] And now ...Qg4+ would win.} 18. f3 {[%emt 0:05:47] Against Qg4+} Rf6 {[%emt 0:09:06]} (18... exd5 $11 {remains equal.} 19. cxd5 d6) 19. Qb3 {[%emt 0:07:42]} (19. dxe6 $16 dxe6 20. Bc2) 19... g5 {[%emt 0:03:42]} (19... Kh8 $14) 20. fxg5 {[%emt 0:04:47]} (20. dxe6 $16 {Black must now prevent Kh1.} gxf4 21. Kh1 dxe6 22. Rg1+ Kh8 23. Bc2) 20... Qxg5+ $11 {[%emt 0:00:21]} 21. Kh1 {[%emt 0:00:52]} ({Better is} 21. Kf2 $1 $14 Rg6 22. Ke2) 21... Rg6 {[%emt 0:01:25][%csl Gg6][%cal Rg5g2]} ({Don't do} 21... Qxe3 22. Qxb6 Rh6 23. Qxa5 $16) 22. Rd2 {[%emt 0:06:30] Dodges Qg2+} Qxe3 {[%emt 0:00:16]} 23. Re2 {[%emt 0:00:20]} Qd4 {[%emt 0:01:26]} 24. dxe6 {[%emt 0:02:51]} dxe6 {[%emt 0:00:09]} 25. Bc2 {[%emt 0:01:35] [#] White is weak on the dark squares} (25. Rd1 $1 $15 Qf4 26. Bc2) 25... Kh8 $40 {[%emt 0:05:37][%mdl 128] Black is up to no good. Black is more active.} (25... Kf7 $1 $17 {Threatens to win with ...Rag8.} 26. Rd1 (26. Qxb6 $2 {perishes.} Rag8 $19) 26... Rag8) 26. Qxb6 $2 {[%emt 0:04:56][%mdl 8192] [#] Now White is beyond hope.} (26. Rd1 $15 Rag8 27. Qe3 Qxe3 28. Rxe3) 26... Rag8 $1 {[%emt 0:00:38] Black mates.} 27. Ree1 {[%emt 0:03:04]} (27. Re3 Qd2) 27... Qd2 {[%emt 0:00:03][%csl Gg6,Gg8][%cal Rd2g2]} 28. Rg1 {[%emt 0:00:09] [#]} Qxh2+ $3 {[%emt 0:00:11][%mdl 576] Decoy} 29. Kxh2 {[%emt 0:00:02]} Rh6# {[%emt 0:00:38] Ingenious play by Fernandez!   Weighted Error Value: White=0.54/Black=0.18 (very precise)} 0-1